bitfinex-derivatives/quotes_BNBF0:USTF0_20250630
["timestamp","ask_amount","ask_price","bid_price","bid_amount"]
[1751257172456,3.8007463,656.21,654.77,1.70050557]
[1751257172657,3.8007463,656.21,654.78,1.70050557]
[1751257172950,3.8007463,656.1,654.79,1.70050557]
[1751257173256,3.8007463,656.1,654.8,1.70050557]
[1751257173552,3.8007463,656.18,654.81,1.70050557]
[1751257173855,3.8007463,656.18,654.82,1.70050557]
[1751257174055,3.8007463,656.19,654.83,1.70050557]
[1751257174255,3.8007463,656.19,654.84,1.1360661]
[1751257174457,3.8007463,656.1,654.85,1.1360661]
[1751257174752,3.8007463,656.1,654.86,1.1360661]
[1751257174955,3.8007463,655.99,654.87,1.1360661]
[1751257175152,3.8007463,655.99,654.88,1.1360661]
[1751257175459,3.8007463,656.04,654.89,1.1360661]
[1751257175654,3.8007463,656.04,654.9,1.1360661]
[1751257175858,3.8007463,656.04,654.91,1.1360661]
[1751257176155,3.8007463,656.19,654.92,1.1360661]
[1751257176457,3.8007463,656.19,654.93,1.1360661]
[1751257176657,3.8007463,656.22,654.77,2.09]
[1751257176857,3.8007463,656.22,654.78,1.70051544]
[1751257177054,3.8007463,656.22,654.79,1.70051544]
[1751257177259,3.8007463,656.19,654.8,1.70051544]
[1751257177558,3.8007463,656.19,654.81,1.70051544]
[1751257177759,3.8007463,656.19,654.82,1.70051544]
[1751257177956,3.8007463,656.19,654.83,1.70051544]
[1751257178160,3.8007463,656.19,654.84,1.135974]
[1751257178357,3.8007463,656.19,654.85,1.135974]
[1751257178560,3.8007463,656.19,654.86,1.70054208]
[1751257178760,3.8007463,656.25,654.87,1.70051628]
[1751257178955,3.8007463,656.25,654.88,1.70051628]
[1751257179259,3.8007463,656.25,654.78,2.435]
[1751257179260,3.8007463,656.25,654.89,1.70051628]
[1751257179461,3.8007463,656.25,654.9,1.135974]
[1751257179660,3.8007463,656.25,654.91,1.135974]
[1751257179861,3.8007463,656.25,654.92,1.135974]
[1751257180061,3.8007463,656.25,654.93,1.135974]
[1751257180261,3.8007463,656.25,654.94,1.135974]
[1751257180461,3.8007463,656.25,654.95,1.135974]
[1751257180659,3.8007463,656.25,654.96,1.135974]
[1751257180863,3.8007463,656.25,654.78,2.435]
[1751257181060,3.8007463,656.25,654.79,1.70052242]
[1751257181264,3.8007463,656.25,654.8,1.70052242]
[1751257181559,3.8007463,656.25,654.81,1.70052242]
[1751257181861,3.8007463,656.25,654.82,1.70052242]
[1751257182063,3.8007463,656.25,654.83,1.70052242]
[1751257182266,3.8007463,656.25,654.84,1.70052242]
[1751257182465,3.8007463,656.25,654.78,2.435]
[1751257182466,3.8007463,656.25,654.85,1.70052242]
[1751257182765,3.8007463,656.23,654.86,1.70052242]
[1751257182964,3.8007463,656.23,654.87,1.70052242]
[1751257183169,3.8007463,656.23,654.88,1.70052242]
[1751257183369,3.8007463,656.23,654.89,1.1360101]
[1751257183564,3.8007463,656.23,654.9,1.1360101]
[1751257183766,3.8007463,656.23,654.91,1.1360101]
[1751257184071,3.8007463,656.24,654.92,1.1360101]
[1751257184266,3.8007463,656.24,654.93,1.1360101]
[1751257184470,3.8007463,656.23,654.94,1.1360101]
[1751257184672,3.8007463,656.23,654.95,1.1360101]
[1751257184871,3.8007463,656.23,654.96,1.1360101]
[1751257185169,3.8007463,656.23,654.78,2.435]
[1751257185367,3.8007463,656.2,654.79,1.70051157]
[1751257185572,3.8007463,656.2,654.8,1.70051157]
[1751257185772,3.8007463,656.2,654.81,1.70051157]
[1751257185970,3.8007463,656.14,654.82,1.70051157]
[1751257186169,3.8007463,656.14,654.83,1.70051157]
[1751257186370,3.8007463,656.14,654.84,1.70051157]
[1751257186570,3.8007463,656.1,654.85,1.70051157]
[1751257186771,3.8007463,656.1,654.86,1.1360297]
[1751257186976,3.8007463,656.1,654.87,1.1360297]
[1751257187175,3.8007463,656.1,654.88,1.1360297]
[1751257187374,3.8007463,656.1,654.89,1.1360297]
[1751257187571,3.8007463,656.1,654.9,1.1360297]
[1751257187774,3.8007463,656.1,654.91,1.1360297]
[1751257187977,3.8007463,656.1,654.92,1.1360297]
[1751257188178,3.8007463,656.1,654.93,1.1360297]
[1751257188476,3.8007463,656.1,654.78,2.435]
[1751257188477,3.8007463,656.1,654.94,1.1360297]
[1751257188677,3.8007463,656.1,654.95,1.1360297]
[1751257188871,3.8007463,656.1,654.96,1.1360297]
[1751257189075,3.8007463,656.09,654.78,2.435]
[1751257189276,3.8007463,656.09,654.79,1.70055025]
[1751257189471,3.8007463,656.09,654.8,1.70055025]
[1751257189674,3.8007463,656.09,654.81,1.70055025]
[1751257189874,3.8007463,656.09,654.82,1.70055025]
[1751257190079,3.8007463,656.11,654.83,1.70055025]
[1751257190276,3.8007463,656.11,654.84,1.70055025]
[1751257190574,3.8007463,656.25,654.85,1.70055025]
[1751257190780,3.8007463,656.25,654.86,1.70055025]
[1751257191078,3.8007463,656.25,654.87,1.70055025]
[1751257191278,3.8007463,656.25,654.88,1.70055025]
[1751257191479,3.8007463,656.25,654.89,1.70055025]
[1751257191685,0.2654523,656.33,654.9,1.70055025]
[1751257191878,0.2654523,656.33,654.91,1.1360557]
[1751257192076,0.2654523,656.33,654.78,2.435]
[1751257192077,0.2654523,656.33,654.92,1.1360557]
[1751257192280,3.8007463,656.13,654.93,1.1360557]
[1751257192576,3.8007463,656.13,654.94,1.1360557]
[1751257192775,3.8007463,656.15,654.95,1.1360557]
[1751257192981,3.8007463,656.15,654.96,1.1360557]
[1751257193177,3.8007463,656.17,654.97,1.1360557]
[1751257193381,3.8007463,656.17,654.98,1.1360557]
[1751257193677,3.8007463,656.11,654.99,1.1360557]
[1751257193977,3.8007463,656.11,655.0,1.1360557]
[1751257194176,3.8007463,656.11,654.82,1.1381187]
[1751257194177,3.8007463,656.11,655.01,1.1360557]
[1751257194378,3.8007463,656.11,655.02,1.1360557]
[1751257194582,3.8007463,656.11,655.03,1.1360557]
[1751257194782,3.8007463,656.09,655.04,1.1360557]
[1751257195078,3.8007463,656.09,655.05,1.1360557]
[1751257195277,3.8007463,656.1,654.82,1.1381187]
[1751257195476,3.8007463,656.1,654.83,1.69913956]
[1751257195677,3.8007463,656.1,654.84,1.69913956]
[1751257195980,3.8007463,656.1,654.77,2.09]
[1751257195981,3.8007463,656.1,654.85,1.69913956]
[1751257196180,3.8007463,656.1,654.86,1.69913956]
[1751257196379,3.8007463,656.1,654.79,1.1381187]
[1751257196380,3.8007463,656.24,654.87,1.69913956]
[1751257196579,3.8007463,656.24,654.88,1.69913956]
[1751257196878,3.8007463,656.25,654.89,1.69913956]
[1751257197082,3.8007463,656.25,654.9,1.69913956]
[1751257197282,3.8007463,656.26,654.91,1.69913956]
[1751257197582,3.8007463,656.26,654.92,1.1349419]
[1751257197782,3.8007463,656.26,654.93,1.1349419]
[1751257198082,3.8007463,656.28,654.94,1.1349419]
[1751257198279,3.8007463,656.28,654.95,1.1349419]
[1751257198480,3.8007463,656.28,654.96,1.1349419]
[1751257198681,3.8007463,656.28,654.97,1.1349419]
[1751257198878,3.8007463,656.31,654.98,1.1349419]
[1751257199080,3.8007463,656.31,654.99,1.1349419]
[1751257199383,3.8007463,656.31,655.0,1.1349419]
[1751257199684,3.8007463,656.31,655.01,1.1349419]
[1751257199881,3.8007463,656.31,655.02,1.1349419]
[1751257200084,3.8007463,656.31,655.03,1.1349419]
[1751257200281,3.8007463,656.31,655.04,1.1349419]
[1751257200481,0.2654523,656.33,655.05,1.1349419]
[1751257200686,0.2654523,656.33,655.06,1.1349419]
[1751257200883,0.2654523,656.33,654.92,2.88]
[1751257201085,0.2654523,656.33,654.93,1.1341977]
[1751257201288,0.2654523,656.33,654.94,1.1341977]
[1751257201587,0.2654523,656.33,654.92,2.88]
[1751257201588,0.2654523,656.33,654.95,1.1341977]
[1751257201785,0.2654523,656.33,654.96,1.1341977]
[1751257202085,3.8007463,656.38,654.97,1.1341977]
[1751257202390,0.26551103,655.99,654.98,1.133875]
[1751257202689,0.26551103,655.99,654.99,1.133875]
[1751257202989,0.26551103,655.99,655.0,1.133875]
[1751257203186,0.26551103,655.99,655.01,1.133875]
[1751257203388,0.26551103,655.99,655.02,1.133875]
[1751257203688,0.26551103,655.99,655.03,1.133875]
[1751257203987,0.26551103,655.99,655.04,1.133875]
[1751257204191,0.26551103,655.99,655.05,1.133875]
[1751257204388,0.26551103,655.99,655.06,1.133875]
[1751257204691,0.26551103,655.99,655.07,1.133875]
[1751257204888,0.26551103,655.99,654.92,2.88]
[1751257205091,0.26551103,655.99,654.93,1.69673781]
[1751257205289,0.26551103,655.99,654.94,1.69673781]
[1751257205491,0.26551103,655.99,654.95,1.69673781]
[1751257205688,0.26551103,655.99,654.96,1.69673781]
[1751257205990,0.26551103,655.99,654.97,1.69673781]
[1751257206189,0.26551103,655.99,654.98,1.69673781]
[1751257206390,0.26551103,655.99,654.99,1.1335534]
[1751257206593,0.26551103,655.99,655.0,1.1335534]
[1751257206893,0.26551103,655.99,655.01,1.1335534]
[1751257207188,0.26551103,655.99,655.02,1.1335534]
[1751257207395,0.26551103,655.99,655.03,1.1335534]
[1751257207590,0.26551103,655.99,655.04,1.1335534]
[1751257207794,0.26551103,655.99,655.05,1.1335534]
[1751257207995,0.26551103,655.99,655.06,1.1335534]
[1751257208195,0.26551103,655.99,654.92,2.88]
[1751257208396,0.26551103,655.99,654.93,1.69589078]
[1751257208692,0.26551103,655.99,654.94,1.69589078]
[1751257208896,0.26551103,655.99,654.95,1.69589078]
[1751257209196,0.26551103,655.99,654.96,1.69589078]
[1751257209395,0.26551103,655.99,654.97,1.69589078]
[1751257209592,0.26551103,655.99,654.98,1.1330012]
[1751257209794,0.26551103,655.99,654.99,1.1330012]
[1751257209995,0.26551103,655.99,655.0,1.1330012]
[1751257210290,0.26551103,655.99,655.01,1.1330012]
[1751257210491,0.26551103,655.99,655.02,1.1330012]
[1751257210692,0.26551103,655.99,655.03,1.1330012]
[1751257210891,0.26551103,655.99,655.04,1.1330012]
[1751257211091,0.26551103,655.99,655.05,1.1330012]
[1751257211292,0.26551103,655.99,654.95,2.689]
[1751257211496,0.26551103,655.99,654.96,1.69547632]
[1751257211692,0.26551103,655.99,654.97,1.1327407]
[1751257211894,0.26551103,655.99,654.98,1.1327407]
[1751257212100,0.26551103,655.99,654.99,1.1327407]
[1751257212296,0.26551103,655.99,655.0,1.1327407]
[1751257212497,0.26551103,655.99,655.01,1.1327407]
[1751257212697,0.26551103,655.99,655.02,1.1327407]
[1751257212895,0.26551103,655.99,655.03,1.1327407]
[1751257213095,0.26551103,655.99,655.04,1.1327407]
[1751257213294,0.26551103,655.99,654.95,2.689]
[1751257213498,0.26551103,655.99,654.96,1.69527375]
[1751257213794,0.26551103,655.99,654.97,1.69527375]
[1751257213997,0.26551103,655.99,654.98,1.69527375]
[1751257214199,0.26551103,655.99,654.99,1.1326058]
[1751257214399,0.26551103,655.99,655.0,1.1326058]
[1751257214600,0.26551103,655.99,655.01,1.1326058]
[1751257214800,0.26551103,655.99,655.02,1.1326058]
[1751257214997,0.26551103,655.99,655.03,1.1326058]
[1751257215195,0.26551103,655.99,655.04,1.1326058]
[1751257215396,0.26551103,655.99,655.05,1.1326058]
[1751257215698,0.26551103,655.99,654.95,2.689]
[1751257215903,0.26551103,655.99,654.96,1.69512117]
[1751257216097,0.26551103,655.99,654.97,1.69512117]
[1751257216299,0.26551103,655.99,654.98,1.69512117]
[1751257216497,0.26551103,655.99,654.99,1.69512117]
[1751257216797,0.26551103,655.99,655.0,1.1325041]
[1751257216996,0.26551103,655.99,655.01,1.1325041]
[1751257217197,0.26551103,655.99,655.02,1.1325041]
[1751257217398,0.26551103,655.99,655.03,1.1325041]
[1751257217599,0.26551103,655.99,655.04,1.1325041]
[1751257217802,0.26551103,655.99,655.05,1.1325041]
[1751257218003,0.26551103,655.99,654.95,2.689]
[1751257218204,0.26551103,655.99,654.96,1.69503822]
[1751257218499,0.26551103,655.99,654.97,1.69503822]
[1751257218703,0.26551103,655.99,654.98,1.69503822]
[1751257218907,0.26551103,655.99,654.99,1.69503822]
[1751257219104,0.26551103,655.99,655.0,1.1324471]
[1751257219301,0.26551103,655.99,655.01,1.1324471]
[1751257219600,0.26551103,655.99,655.02,1.1324471]
[1751257219798,0.26551103,655.99,655.03,1.1324471]
[1751257220002,0.26551103,655.99,655.04,1.1324471]
[1751257220203,0.26551103,655.99,655.05,1.1324471]
[1751257220401,0.26551103,655.99,655.06,1.1324471]
[1751257220603,0.26551103,655.99,655.07,1.1324471]
[1751257220801,0.26551103,655.99,655.08,1.1324471]
[1751257221003,0.26551103,655.99,655.09,1.1324471]
[1751257221306,0.26551103,655.99,654.95,2.689]
[1751257221507,0.26551103,655.99,654.96,1.69510594]
[1751257221807,0.26551103,655.99,654.97,1.69510594]
[1751257222001,0.26551103,655.99,654.98,1.69510594]
[1751257222202,0.26551103,655.99,654.99,1.69510594]
[1751257222402,0.26551103,655.99,655.0,1.1324967]
[1751257222604,0.26551103,655.99,655.01,1.1324967]
[1751257222807,0.26551103,655.99,655.02,1.1324967]
[1751257223104,0.26551103,655.99,655.03,1.1324967]
[1751257223307,0.26551103,655.99,655.04,1.1324967]
[1751257223505,0.26551103,655.99,655.05,1.1324967]
[1751257223705,0.26551103,655.99,655.06,1.1324967]
[1751257223907,0.26551103,655.99,655.07,1.1324967]
[1751257224105,0.26551103,655.99,655.08,1.1324967]
[1751257224308,0.26551103,655.99,655.09,1.1324967]
[1751257224508,0.26551103,655.99,655.1,1.1324967]
[1751257224807,0.26551103,655.99,654.95,2.689]
[1751257225106,0.26551103,655.99,654.96,1.69522748]
[1751257225308,0.26551103,655.99,654.97,1.69522748]
[1751257225602,0.26551103,655.99,654.98,1.69522748]
[1751257225808,0.26551103,655.99,654.99,1.69522748]
[1751257226009,0.26551103,655.99,655.0,1.1326067]
[1751257226210,0.26551103,655.99,655.01,1.1326067]
[1751257226416,0.26551103,655.99,655.02,1.1326067]
[1751257226610,0.26551103,655.99,655.03,1.1326067]
[1751257226809,0.26551103,655.99,655.04,1.1326067]
[1751257227005,0.26551103,655.99,655.05,1.1326067]
[1751257227210,0.26551103,655.99,655.06,1.1326067]
[1751257227507,0.26551103,655.99,655.07,1.1326067]
[1751257227705,0.26551103,655.99,655.08,1.1326067]
[1751257228010,0.26551103,655.99,655.09,1.1326067]
[1751257228212,0.26551103,655.99,655.1,1.1326067]
[1751257228410,0.26551103,655.99,655.11,1.1326067]
[1751257228607,0.26551103,655.99,654.99,2.872]
[1751257228806,0.26551103,655.99,655.0,1.132848]
[1751257229010,0.26551103,655.99,655.01,1.132848]
[1751257229206,0.26551103,655.99,655.02,1.132848]
[1751257229406,0.26551103,655.99,655.03,1.132848]
[1751257229606,0.26551103,655.99,655.04,1.132848]
[1751257229910,0.26551103,655.99,655.05,1.132848]
[1751257230111,0.26551103,655.99,654.99,2.872]
[1751257230112,0.26551103,655.99,655.06,1.132848]
[1751257230311,0.26551103,655.99,655.07,1.132848]
[1751257230512,0.26551103,655.99,654.99,2.872]
[1751257230513,0.26551103,655.99,655.08,1.132848]
[1751257230713,0.26551103,655.99,654.99,2.872]
[1751257230714,0.26551103,655.99,655.09,1.132848]
[1751257230913,0.26551103,655.99,655.1,1.132848]
[1751257231114,0.26551103,655.99,654.99,2.872]
[1751257231310,0.26551103,655.99,655.0,1.69583675]
[1751257231617,0.26551103,655.99,655.01,1.1330805]
[1751257231809,0.26551103,655.99,655.02,1.1330805]
[1751257232009,0.26551103,655.99,655.03,1.1330805]
[1751257232214,0.26551103,655.99,655.04,1.1330805]
[1751257232414,0.26551103,655.99,655.05,1.1330805]
[1751257232617,0.26551103,655.99,655.06,1.1330805]
[1751257232813,0.26551103,655.99,655.07,1.1330805]
[1751257233015,0.26551103,655.99,655.08,1.1330805]
[1751257233220,0.26551103,655.99,654.99,2.872]
[1751257233221,0.26551103,655.99,655.09,1.1330805]
[1751257233516,0.26551103,655.99,655.1,1.1330805]
[1751257233717,0.26551103,655.99,655.11,1.1330805]
[1751257233915,0.26551103,655.99,655.12,1.1330805]
[1751257234116,0.26551103,655.99,654.99,2.872]
[1751257234314,0.26551103,655.99,655.0,1.133531]
[1751257234619,0.26551103,655.99,655.01,1.133531]
[1751257234917,0.26551103,655.99,655.02,1.133531]
[1751257235116,0.26551103,655.99,655.03,1.133531]
[1751257235317,0.26551103,655.99,655.04,1.133531]
[1751257235518,0.26551103,655.99,655.05,1.133531]
[1751257235720,0.26551103,655.99,655.06,1.133531]
[1751257235920,0.26551103,655.99,655.07,1.133531]
[1751257236215,0.26551103,655.99,654.99,2.872]
[1751257236216,0.26551103,655.99,655.08,1.133531]
[1751257236417,0.26551103,655.99,655.09,1.133531]
[1751257236616,0.26551103,655.99,655.1,1.133531]
[1751257236821,0.26551103,655.99,655.11,1.133531]
[1751257237017,0.26551103,655.99,654.99,2.872]
[1751257237222,0.26551103,655.99,655.0,1.1336475]
[1751257237418,0.26551103,655.99,655.01,1.1336475]
[1751257237623,0.26551103,655.99,655.02,1.1336475]
[1751257237822,0.26551103,655.99,655.03,1.1336475]
[1751257238023,0.26551103,655.99,655.04,1.1336475]
[1751257238221,0.26551103,655.99,655.05,1.1336475]
[1751257238423,0.26551103,655.99,655.06,1.1336475]
[1751257238624,0.26551103,655.99,655.07,1.1336475]
[1751257238825,0.26551103,655.99,654.99,2.872]
[1751257239123,0.26551103,655.99,655.0,1.13385413]
[1751257239326,0.26551103,655.99,655.01,1.13385413]
[1751257239526,0.26551103,655.99,655.02,1.13385413]
[1751257239822,0.26551103,655.99,655.03,1.13385413]
[1751257240026,0.26551103,655.99,655.04,1.13385413]
[1751257240227,0.26551103,655.99,655.05,1.13385413]
[1751257240444,0.26551103,655.99,655.06,1.13385413]
[1751257240623,0.26551103,655.99,655.07,1.13385413]
[1751257240822,0.26551103,655.99,655.08,1.13385413]
[1751257241025,0.26551103,655.99,654.99,2.872]
[1751257241321,0.26551103,655.99,655.0,1.13408329]
[1751257241524,0.26551103,655.99,655.01,1.13408329]
[1751257241724,0.26551103,655.99,655.02,1.13408329]
[1751257241924,0.26551103,655.99,655.03,1.13408329]
[1751257242123,0.26551103,655.99,655.04,1.13408329]
[1751257242321,0.26551103,655.99,655.05,1.13408329]
[1751257242526,0.26551103,655.99,655.06,1.13408329]
[1751257242727,0.26551103,655.99,655.07,1.13408329]
[1751257243027,0.26551103,655.99,654.99,2.872]
[1751257243228,0.26551103,655.99,655.0,1.1343976]
[1751257243424,0.26551103,655.99,655.01,1.1343976]
[1751257243625,0.26551103,655.99,655.02,1.1343976]
[1751257243828,0.26551103,655.99,655.03,1.1343976]
[1751257244026,0.26551103,655.99,655.04,1.1343976]
[1751257244227,0.26551103,655.99,655.05,1.1343976]
[1751257244431,0.26551103,655.99,655.06,1.1343976]
[1751257244631,0.26551103,655.99,654.99,2.872]
[1751257244829,0.26551103,655.99,655.0,1.1346811]
[1751257245130,0.26551103,655.99,655.01,1.1346811]
[1751257245429,0.26551103,655.99,655.02,1.1346811]
[1751257245632,0.26551103,655.99,655.03,1.1346811]
[1751257245832,0.26551103,655.99,655.04,1.1346811]
[1751257246128,0.26551103,655.99,655.05,1.1346811]
[1751257246332,0.26551103,655.99,655.06,1.1346811]
[1751257246529,0.26551103,655.99,655.07,1.1346811]
[1751257246728,0.26551103,655.99,654.99,2.872]
[1751257246928,0.26551103,655.99,655.0,1.1349794]
[1751257247128,0.26551103,655.99,655.01,1.1349794]
[1751257247332,0.26551103,655.99,655.02,1.1349794]
[1751257247533,0.26551103,655.99,655.03,1.1349794]
[1751257247732,0.26551103,655.99,655.04,1.1349794]
[1751257248032,0.26551103,655.99,655.05,1.1349794]
[1751257248234,0.26551103,655.99,655.06,1.1349794]
[1751257248433,0.26551103,655.99,655.07,3.2289794]
[1751257248630,0.26551103,655.99,655.08,1.1349794]
[1751257248832,0.26551103,655.99,655.07,2.094]
[1751257249030,0.26551103,655.99,655.08,1.1353466]
[1751257249234,0.26551103,655.99,655.09,1.1355386]
[1751257249437,0.26551103,655.99,655.07,2.094]
[1751257249735,0.26551103,655.99,655.08,1.1355386]
[1751257250035,0.26551103,655.99,655.07,2.094]
[1751257250232,0.26551103,655.99,655.08,1.1355261]
[1751257250435,0.26551103,655.99,655.09,1.1355261]
[1751257250736,0.26551103,655.99,655.07,2.094]
[1751257251033,0.26551103,655.99,655.08,1.1356796]
[1751257251231,0.26551103,655.99,655.09,1.1356796]
[1751257251437,0.26551103,655.99,655.07,2.094]
[1751257251636,0.26551103,655.99,655.08,1.1358335]
[1751257251834,0.26551103,655.99,655.09,1.1358335]
[1751257252136,0.26551103,655.99,655.07,2.094]
[1751257252336,0.26551103,655.99,655.08,1.1359318]
[1751257252636,0.26551103,655.99,655.09,1.1359318]
[1751257252838,0.26551103,655.99,655.07,2.094]
[1751257253038,0.26551103,655.99,655.08,1.1359318]
[1751257253235,0.26551103,655.99,655.09,1.1359318]
[1751257253438,0.26551103,655.99,655.1,1.1359318]
[1751257253638,0.26551103,655.99,655.07,2.094]
[1751257253939,0.26551103,655.99,655.08,1.1359545]
[1751257254234,0.26551103,655.99,655.09,1.1359545]
[1751257254436,0.26551103,655.99,655.07,2.094]
[1751257254634,0.26551103,655.99,655.08,1.1359248]
[1751257254834,0.26551103,655.99,655.09,1.1359248]
[1751257255038,0.26551103,655.99,655.1,1.1359248]
[1751257255239,0.26551103,655.99,655.07,2.094]
[1751257255436,0.26551103,655.99,655.08,1.1358911]
[1751257255740,0.26551103,655.99,655.09,1.1358911]
[1751257255937,0.26551103,655.99,655.1,1.1358911]
[1751257256137,0.26551103,655.99,655.07,2.094]
[1751257256335,0.26551103,655.99,655.08,1.1358703]
[1751257256536,0.26551103,655.99,655.09,1.1358703]
[1751257256736,0.26551103,655.99,655.1,1.1358703]
[1751257256936,0.26551103,655.99,655.1,3.546]
[1751257269148,0.26551103,655.99,655.11,1.1358253]
[1751257269344,0.26551103,655.99,655.1,3.546]
[1751257269547,0.26551103,655.99,655.11,1.1357789]
[1751257269847,0.26551103,655.99,655.1,3.546]
[1751257270045,0.26551103,655.99,655.11,1.1357789]
[1751257270244,0.26551103,655.99,655.1,3.546]
[1751257270446,0.26551103,655.99,655.11,1.1357922]
[1751257270748,0.26551103,655.99,655.1,3.546]
[1751257270945,0.26551103,655.99,655.11,1.1357922]
[1751257271149,0.26551103,655.99,655.1,3.546]
[1751257271344,0.26551103,655.99,655.11,1.135806]
[1751257271549,0.26551103,655.99,655.1,3.546]
[1751257271751,0.26551103,655.99,655.11,1.135806]
[1751257271951,0.26551103,655.99,655.12,1.135806]
[1751257272145,0.26551103,655.99,655.1,3.546]
[1751257272350,0.26551103,655.99,655.11,1.135823]
[1751257272544,0.26551103,655.99,655.12,1.135823]
[1751257272748,0.26551103,655.99,655.1,3.546]
[1751257272949,0.26551103,655.99,655.11,1.135823]
[1751257273150,0.26551103,655.99,655.12,1.135823]
[1751257273352,0.26551103,655.99,655.1,3.546]
[1751257273553,0.26551103,655.99,655.11,1.1358406]
[1751257273849,0.26551103,655.99,655.12,1.1358406]
[1751257274052,0.26551103,655.99,655.1,3.546]
[1751257274252,0.26551103,655.99,655.11,1.1358669]
[1751257274447,0.26551103,655.99,655.1,3.546]
[1751257274752,0.26551103,655.99,655.11,1.1358669]
[1751257274950,0.26551103,655.99,655.07,2.094]
[1751257275147,0.26551103,655.99,655.08,1.1358669]
[1751257275347,0.26551103,655.99,655.09,1.1358669]
[1751257275552,0.26551103,655.99,655.1,1.1358669]
[1751257275748,0.26551103,655.99,655.11,1.1358669]
[1751257276049,0.26551103,655.99,655.07,2.094]
[1751257276249,0.26551103,655.99,655.08,1.1359132]
[1751257276450,0.26551103,655.99,655.09,1.1359132]
[1751257276650,0.26551103,655.99,655.1,1.1359132]
[1751257276949,0.26551103,655.99,655.11,1.1359132]
[1751257277152,0.26551103,655.99,655.07,2.094]
[1751257277351,0.26551103,655.99,655.08,1.1359376]
[1751257277549,0.26551103,655.99,655.09,4.4829376]
[1751257277750,0.26551103,655.99,655.1,1.1359376]
[1751257277953,0.26551103,655.99,655.11,1.1359376]
[1751257278250,0.26551103,655.99,655.12,1.1359376]
[1751257278454,0.26551103,655.99,655.09,3.347]
[1751257278753,0.26551103,655.99,655.1,1.1359634]
[1751257279055,0.26551103,655.99,655.11,1.1359634]
[1751257279257,0.26551103,655.99,655.12,1.1359634]
[1751257279452,0.26551103,655.99,655.13,1.1359634]
[1751257279656,0.26551103,655.99,655.09,3.347]
[1751257279855,0.26551103,655.99,655.1,1.1359902]
[1751257280056,0.26551103,655.99,655.11,1.1359902]
[1751257280256,0.26551103,655.99,655.12,1.1359902]
[1751257280457,0.26551103,655.99,655.09,3.347]
[1751257285262,0.26551103,655.99,655.1,1.1361859]
[1751257285456,0.26551103,655.99,655.09,3.347]
[1751257285658,0.26551103,655.99,655.1,1.1361859]
[1751257285861,0.26551103,655.99,655.09,3.347]
[1751257286061,0.26551103,655.99,655.1,1.1361814]
[1751257286357,0.26551103,655.99,655.11,1.1362122]
[1751257286563,0.26551103,655.99,655.09,3.347]
[1751257286757,0.26551103,655.99,655.1,1.1361669]
[1751257286957,0.26551103,655.99,655.11,1.1361669]
[1751257287163,0.26551103,655.99,655.12,1.1361669]
[1751257287362,0.26551103,655.99,655.13,1.1361669]
[1751257287562,0.26551103,655.99,655.14,1.1361669]
[1751257287758,0.26551103,655.99,655.09,3.347]
[1751257288063,0.26551103,655.99,655.1,1.69997273]
[1751257288264,0.26551103,655.99,655.11,1.69997273]
[1751257288560,0.26551103,655.99,655.12,1.69997273]
[1751257288863,0.26551103,655.99,655.13,1.69997273]
[1751257289065,0.26551103,655.99,655.14,1.135917]
[1751257289265,0.26551103,655.99,655.15,1.135917]
[1751257289561,0.26551103,655.99,655.16,1.135917]
[1751257289761,0.26551103,655.99,655.17,1.135917]
[1751257289961,0.26551103,655.99,655.18,1.135917]
[1751257290161,0.26551103,655.99,655.13,2.694]
[1751257290162,0.26551103,655.99,655.19,1.135917]
[1751257290363,0.26551103,655.99,655.2,1.135917]
[1751257290568,0.26551103,655.99,655.21,1.135917]
[1751257290762,0.26551103,655.99,655.22,1.135917]
[1751257290961,0.26551103,655.99,655.23,1.135917]
[1751257291163,0.26551103,655.99,655.24,1.135917]
[1751257291462,0.26551103,655.99,655.13,2.694]
[1751257291662,0.26551103,655.99,655.14,1.1350755]
[1751257291863,0.26551103,655.99,655.15,1.1350755]
[1751257292064,0.26551103,655.99,655.13,2.694]
[1751257292264,0.26551103,655.99,655.14,1.1349148]
[1751257292563,0.26551103,655.99,655.15,1.1349148]
[1751257292767,0.26551103,655.99,655.16,1.1349148]
[1751257292963,0.26551103,655.99,655.17,1.1349148]
[1751257293162,0.26551103,655.99,655.18,1.1349148]
[1751257293366,0.26551103,655.99,655.19,1.1349148]
[1751257293564,0.26551103,655.99,655.2,1.1349148]
[1751257293767,0.26551103,655.99,655.21,1.1349148]
[1751257294067,0.26551103,655.99,655.22,1.1349148]
[1751257294265,0.26551103,655.99,655.23,1.1349148]
[1751257294466,0.26551103,655.99,655.13,2.694]
[1751257294663,0.26551103,655.99,655.14,1.69794746]
[1751257294867,0.26551103,655.99,655.15,1.134619]
[1751257295066,0.26551103,655.99,655.16,1.134619]
[1751257295265,0.26551103,655.99,655.17,1.134619]
[1751257295468,0.26551103,655.99,655.18,1.134619]
[1751257295668,0.26551103,655.99,655.13,2.694]